bitfinex/quotes_SOLUSD_20240814
["timestamp","ask_amount","ask_price","bid_price","bid_amount"]
[1723647228812,20.0,147.23,147.16,15.4673]
[1723647229121,20.0,147.24,147.16,15.4673]
[1723647229315,34.89,147.27,147.16,15.4673]
[1723647229551,20.0,147.26,147.18,6.5506]
[1723647229845,20.0,147.28,147.18,6.5506]
[1723647230014,34.89,147.27,147.18,6.5506]
[1723647230215,34.89,147.25,147.18,6.5506]
[1723647230853,54.89,147.28,147.18,6.5506]
[1723647231216,45.0,147.27,147.18,6.5506]
[1723647231416,20.0,147.26,147.18,6.5506]
[1723647232248,45.0,147.25,147.18,6.5506]
[1723647232454,20.0,147.26,147.19,0.97764314]
[1723647232616,40.0,147.27,147.18,6.5506]
[1723647233127,45.0,147.26,147.18,6.5506]
[1723647233455,20.0,147.25,147.18,6.5506]
[1723647235850,65.0,147.24,147.18,6.5506]
[1723647236051,34.89,147.23,147.18,6.5506]
[1723647236421,20.0,147.22,147.18,6.5506]
[1723647237023,34.89,147.21,147.18,6.5506]
[1723647237252,34.89,147.19,147.16,15.4673]
[1723647237833,34.89,147.17,147.14,6.2431]
[1723647238053,20.0,147.16,147.14,6.2431]
[1723647238532,20.0,147.16,147.12,15.2866]
[1723647238848,79.89,147.15,147.12,15.2866]
[1723647239048,20.0,147.14,147.12,15.2866]
[1723647239622,20.0,147.16,147.12,15.2866]
[1723647240565,34.89,147.15,147.1,6.371]
[1723647240727,20.0,147.18,147.1,6.371]
[1723647240728,34.89,147.13,147.1,6.371]
[1723647242754,20.0,147.12,147.1,6.371]
[1723647246567,20.0,147.14,147.08,16.6184]
[1723647246864,34.89,147.13,147.08,16.6184]
[1723647247071,20.0,147.12,147.08,16.6184]
[1723647247573,2.63831486,147.16,147.08,16.6184]
[1723647247770,54.89,147.17,147.08,16.6184]
[1723647248447,34.89,147.19,147.08,16.6184]
[1723647248650,34.89,147.21,147.09,65.0]
[1723647249479,54.89,147.19,147.09,20.0]
[1723647249648,54.89,147.17,147.09,20.0]
[1723647249851,54.89,147.17,147.08,16.6184]
[1723647250276,65.0,147.16,147.08,16.6184]
[1723647250576,20.0,147.16,147.08,16.6184]
[1723647251149,54.89,147.16,147.09,1.35836579]
[1723647251374,34.89,147.16,147.09,1.35836579]
[1723647251546,20.0,147.15,147.09,1.35836579]
[1723647251745,20.0,147.18,147.08,16.6184]
[1723647251962,34.89,147.17,147.08,16.6184]
[1723647252358,34.89,147.21,147.1,6.0516]
[1723647252558,34.97,147.22,147.11,65.0]
[1723647253179,34.97,147.2,147.1,6.0516]
[1723647253680,34.97,147.2,147.11,1.12880427]
[1723647253858,34.97,147.2,147.1,6.0516]
[1723647253859,34.97,147.2,147.12,1.128037]
[1723647254052,45.0,147.19,147.1,6.0516]
[1723647254254,34.97,147.2,147.11,46.12813106]
[1723647254648,20.0,147.19,147.11,46.12813106]
[1723647254849,34.97,147.21,147.11,46.12813106]
[1723647255071,20.0,147.2,147.11,46.12813106]
[1723647255456,20.0,147.2,147.11,45.0]
[1723647259206,27.98,147.19,147.11,45.0]
[1723647260200,20.0,147.2,147.11,45.0]
[1723647260397,20.0,147.22,147.12,15.7573]
[1723647260574,47.98,147.26,147.13,79.3104]
[1723647260773,27.98,147.26,147.15,22.0877]
[1723647261007,27.98,147.26,147.16,45.0]
[1723647261181,27.98,147.26,147.17,1.3580283]
[1723647261383,27.98,147.26,147.18,1.35793605]
[1723647261701,27.98,147.26,147.16,45.0]
[1723647262009,27.98,147.26,147.17,1.35851395]
[1723647262311,27.98,147.26,147.16,45.0]
[1723647262312,20.0,147.25,147.18,1.35842164]
[1723647262897,27.98,147.25,147.16,45.0]
[1723647263106,20.0,147.24,147.16,45.0]
[1723647263969,20.0,147.24,147.15,22.0877]
[1723647264197,20.0,147.24,147.16,20.0]
[1723647266696,27.98,147.28,147.17,23.0436]
[1723647266895,20.0,147.27,147.17,68.0436]
[1723647267091,27.98,147.28,147.18,1.35823466]
[1723647267416,27.98,147.28,147.18,20.0]
[1723647267716,20.39453122,147.33,147.21,15.705]
[1723647267889,27.98,147.32,147.22,21.35802648]
[1723647269013,20.0,147.31,147.22,21.35802648]
[1723647269313,47.93,147.31,147.22,21.35802648]
[1723647269520,20.0,147.32,147.23,6.2131]
[1723647269810,28.32453122,147.33,147.23,6.2131]
[1723647269998,27.93,147.31,147.23,6.2131]
[1723647270199,27.93,147.29,147.23,6.2131]
[1723647271330,0.39453122,147.33,147.24,0.71137378]
[1723647271487,28.32453122,147.33,147.24,0.71137378]
[1723647271689,20.0,147.32,147.24,0.71137378]
[1723647271886,20.0,147.32,147.25,1.35781242]
[1723647272306,27.93,147.31,147.23,6.2131]
[1723647274103,20.0,147.32,147.24,1.35741138]
[1723647276027,20.0,147.32,147.23,6.2131]
[1723647276514,20.0,147.32,147.24,46.35704261]
[1723647276992,20.0,147.32,147.25,6.0654]
[1723647277197,0.39453122,147.33,147.26,1.35685829]
[1723647277400,0.39453122,147.33,147.27,1.35676615]
[1723647277693,0.39453122,147.33,147.26,65.0]
[1723647280530,0.39453122,147.33,147.26,20.0]
[1723647280728,27.93,147.32,147.25,21.8688]
[1723647281727,27.93,147.32,147.26,0.40810969]
[1723647281905,20.39453122,147.33,147.25,21.8688]
[1723647282112,20.39453122,147.33,147.26,45.0]
[1723647282701,20.39453122,147.33,147.25,21.8688]
[1723647283320,27.93,147.32,147.25,21.8688]
[1723647284796,27.93,147.32,147.26,0.54797753]
[1723647285124,27.93,147.32,147.25,21.8688]
[1723647287735,27.93,147.3,147.25,21.8688]
[1723647292431,27.93,147.32,147.25,21.8688]
[1723647292635,27.93,147.32,147.26,0.81303844]
[1723647292841,20.0,147.31,147.26,0.81303844]
[1723647293215,20.0,147.31,147.25,21.8688]
[1723647296649,27.93,147.32,147.25,21.8688]
[1723647297535,27.93,147.3,147.25,21.8688]
[1723647299725,27.93,147.26,147.22,6.489]
[1723647300653,27.93,147.24,147.22,6.489]
[1723647301011,27.93,147.24,147.21,16.5237]
[1723647302033,27.93,147.24,147.18,6.5802]
[1723647302661,27.93,147.2,147.18,6.5802]
[1723647302957,27.93,147.2,147.17,15.2104]
[1723647303150,27.93,147.2,147.14,6.3012]
[1723647303458,0.25098,147.23,147.14,6.3012]
[1723647303459,27.93,147.18,147.14,6.3012]
[1723647304849,27.93,147.16,147.08,21.9706]
[1723647307355,0.12549,147.18,147.08,21.9706]
[1723647307555,65.12549,147.18,147.08,21.9706]
[1723647307843,0.12549,147.16,147.08,21.9706]
[1723647308055,45.25098,147.16,147.08,21.9706]
[1723647308249,0.12549,147.16,147.08,21.9706]
[1723647308445,27.93,147.17,147.08,21.9706]
[1723647309041,45.37647,147.16,147.08,21.9706]
[1723647309451,20.0,147.23,147.08,49.9006]
[1723647309766,27.93,147.25,147.13,15.1227]
[1723647310070,27.93,147.27,147.15,6.0534]
[1723647310260,27.93,147.27,147.16,65.0]
[1723647310471,41.5063,147.3,147.16,20.0]
[1723647310472,27.93,147.25,147.16,20.0]
[1723647311071,27.93,147.27,147.16,20.0]
[1723647311370,27.93,147.27,147.17,45.0]
[1723647312361,0.12549,147.26,147.17,45.0]
[1723647313071,403.7898,147.34,147.19,6.6305]
[1723647313285,403.7898,147.34,147.2,92.93]
[1723647313286,28.32453122,147.33,147.2,92.93]
[1723647313753,28.32453122,147.33,147.22,15.0672]
[1723647313941,28.32453122,147.33,147.23,0.38109124]
[1723647314148,0.39453122,147.33,147.24,6.6305]
[1723647314364,27.93,147.32,147.24,6.6305]
[1723647314669,0.39453122,147.33,147.24,6.6305]
[1723647314849,27.93,147.32,147.24,6.6305]
[1723647316079,0.12549,147.31,147.24,6.6305]
[1723647316373,45.50196,147.31,147.24,6.6305]
[1723647316577,27.93,147.3,147.24,6.6305]
[1723647316945,0.12549,147.29,147.24,6.6305]
[1723647317461,27.93,147.3,147.24,6.6305]
[1723647319273,0.39453122,147.33,147.24,6.6305]
[1723647319503,28.32453122,147.33,147.25,1.35724836]
[1723647319650,28.32453122,147.33,147.24,6.6305]
[1723647320779,0.12549,147.32,147.24,6.6305]
[1723647321461,28.05549,147.32,147.24,6.6305]
[1723647321779,28.05549,147.3,147.24,6.6305]
[1723647322177,27.93,147.3,147.24,6.6305]
[1723647322887,27.93,147.26,147.24,6.6305]
[1723647323092,0.12549,147.29,147.24,6.6305]
[1723647323256,0.12549,147.3,147.24,6.6305]
[1723647323460,73.30647,147.31,147.24,6.6305]
[1723647323781,27.93,147.29,147.24,6.6305]
[1723647324281,28.05549,147.31,147.25,1.35638029]
[1723647324461,0.12549,147.3,147.24,6.6305]
[1723647324781,0.12549,147.28,147.24,6.6305]
[1723647324987,27.93,147.27,147.24,6.6305]
[1723647325161,27.93,147.25,147.22,15.0672]
[1723647325552,27.93,147.23,147.2,6.2083]
[1723647326156,27.93,147.25,147.2,6.2083]
[1723647326681,0.25098,147.28,147.2,6.2083]
[1723647326879,27.93,147.27,147.2,6.2083]
[1723647327089,0.25098,147.29,147.2,6.2083]
[1723647327090,27.93,147.29,147.2,6.2083]
[1723647327291,27.93,147.29,147.21,45.0]
[1723647327488,27.93,147.29,147.2,6.2083]
[1723647328104,36.3048,147.34,147.2,6.2083]
[1723647328267,27.93,147.31,147.21,81.4134]
[1723647328470,27.93,147.29,147.21,81.4134]
[1723647328671,27.93,147.29,147.21,36.4134]
[1723647329292,20.39453122,147.33,147.21,36.4134]
[1723647329496,27.93,147.29,147.21,36.4134]
[1723647329990,27.93,147.31,147.22,45.0]
[1723647330208,27.93,147.31,147.23,20.0]
[1723647330706,28.32453122,147.33,147.23,20.0]
[1723647331004,28.32453122,147.33,147.24,6.1055]
[1723647331395,27.93,147.31,147.24,6.1055]
[1723647333180,28.32453122,147.33,147.25,1.33278552]
[1723647333502,28.32453122,147.33,147.21,16.4134]
[1723647333503,0.12549,147.26,147.21,16.4134]
[1723647333717,27.93,147.24,147.21,16.4134]
[1723647337586,27.93,147.27,147.21,17.38391913]
[1723647337777,27.93,147.27,147.21,16.4134]
[1723647340333,0.12549,147.28,147.21,16.4134]
[1723647340616,27.93,147.29,147.21,16.4134]
[1723647341525,27.93,147.29,147.22,0.9705739]
[1723647343332,22.46662529,147.33,147.22,65.0]
[1723647343333,27.93,147.31,147.22,65.0]
[1723647343518,28.32453122,147.33,147.23,7.96561964]
[1723647343824,0.39453122,147.33,147.24,46.35793051]
[1723647344123,0.39453122,147.33,147.24,20.0]
[1723647344124,27.93,147.31,147.24,20.0]
[1723647345305,27.93,147.29,147.23,6.6078]
[1723647345805,0.39453122,147.33,147.24,17.72405346]
[1723647346218,0.39453122,147.33,147.24,16.3659]
[1723647346708,0.39453122,147.33,147.25,45.0]
[1723647347762,0.39453122,147.33,147.24,16.3659]
[1723647347949,27.93,147.3,147.24,16.3659]
[1723647349207,27.93,147.28,147.24,16.3659]
[1723647350332,0.12549,147.24,147.14,21.5351]
[1723647350627,27.93,147.2,147.14,21.5351]
[1723647351404,27.93,147.18,147.14,21.5351]
[1723647351602,27.93,147.18,147.11,7.10661756]
[1723647351603,27.93,147.16,147.05,6.4668]
[1723647351831,27.93,147.15,147.07,30.0]
[1723647352443,27.93,147.17,147.07,30.0]
[1723647353328,27.93,147.17,147.06,7.10918226]
[1723647353527,27.93,147.17,147.07,20.0]
[1723647354026,27.93,147.17,147.08,45.0]
[1723647354027,34.99,147.17,147.08,45.0]
[1723647354228,34.99,147.19,147.11,15.3388]
[1723647354427,34.99,147.21,147.12,65.0]
[1723647355398,34.99,147.25,147.14,6.4951]
[1723647355602,34.99,147.25,147.15,66.35792795]
[1723647355830,34.99,147.25,147.15,65.0]
[1723647356705,20.0,147.24,147.15,65.0]
[1723647357415,34.99,147.25,147.15,65.0]
[1723647359443,34.99,147.25,147.16,15.0742]
[1723647359608,34.99,147.25,147.17,65.0]
[1723647361319,35.4894,147.32,147.17,65.0]
[1723647361320,0.39453122,147.33,147.19,6.2386]
[1723647361538,34.99,147.29,147.21,16.5156]
[1723647361724,34.99,147.25,147.21,16.5156]
[1723647363102,20.39453122,147.33,147.21,16.5156]
[1723647363103,34.99,147.3,147.21,16.5156]
[1723647363433,34.99,147.3,147.22,45.0]
[1723647363809,54.99,147.3,147.22,45.0]
[1723647364109,34.99,147.3,147.22,45.0]
[1723647364933,34.99,147.32,147.22,45.0]
[1723647365138,34.99,147.3,147.22,45.0]
[1723647366412,0.39453122,147.33,147.23,6.219]
[1723647366625,0.39453122,147.33,147.24,65.0]
[1723647366837,34.99,147.32,147.24,20.0]
[1723647367037,34.99,147.3,147.23,6.219]
[1723647367337,34.99,147.3,147.24,20.0]
[1723647367506,34.99,147.3,147.23,6.219]
[1723647368330,34.99,147.28,147.23,6.219]
[1723647370227,34.99,147.32,147.23,6.219]
[1723647370420,20.0,147.31,147.23,6.219]
[1723647370807,34.99,147.3,147.23,6.219]
[1723647371213,34.99,147.32,147.23,6.219]
[1723647371428,34.99,147.32,147.24,45.0]
[1723647371631,20.0,147.31,147.24,45.0]
[1723647372341,20.0,147.31,147.23,6.219]
[1723647372644,0.12549,147.31,147.23,6.219]
[1723647373516,34.99,147.3,147.23,6.219]
[1723647374735,34.99,147.3,147.24,46.35744197]
[1723647374930,34.99,147.3,147.24,45.0]
[1723647375140,34.99,147.3,147.23,6.219]
[1723647375647,0.39453122,147.33,147.23,6.219]
[1723647375830,34.99,147.32,147.24,45.0]
[1723647376015,27.93,147.31,147.24,45.0]
[1723647377228,27.93,147.31,147.25,1.35530228]
[1723647377423,27.93,147.31,147.24,45.0]
[1723647380349,27.93,147.31,147.25,1.35789808]
[1723647380729,27.93,147.31,147.24,45.0]
[1723647381144,27.93,147.31,147.25,1.35716865]
[1723647381352,0.39453122,147.33,147.27,6.4257]
[1723647381649,0.39453122,147.33,147.28,46.35761156]
[1723647383332,0.39453122,147.33,147.28,45.0]
[1723647385861,7.10055143,147.43,147.3,6.5265]
[1723647386036,27.93,147.41,147.33,6.1106]
[1723647386371,3.50962005,147.46,147.36,15.1955]
[1723647386372,0.8426791,147.46,147.36,15.1955]
[1723647386526,0.8426791,147.46,147.37,26.1106]
[1723647386732,0.8426791,147.46,147.38,45.0]
[1723647386934,27.93,147.45,147.38,45.0]
[1723647387237,0.8426791,147.46,147.38,45.0]
[1723647387433,28.7726791,147.46,147.38,45.0]
[1723647387660,27.93,147.44,147.38,45.0]
[1723647387826,28.7726791,147.46,147.38,45.0]
[1723647388327,0.8426791,147.46,147.4,16.0887]
[1723647388529,0.8426791,147.46,147.41,45.0]
[1723647389145,0.8426791,147.46,147.42,6.6138]
[1723647389334,0.8426791,147.46,147.43,45.0]
[1723647389536,28.7726791,147.46,147.42,6.6138]
[1723647389743,27.93,147.44,147.42,6.6138]
[1723647390160,28.7726791,147.46,147.42,6.6138]
[1723647390756,28.7726791,147.46,147.43,1.35646243]
[1723647391238,0.8426791,147.46,147.42,6.6138]
[1723647391537,0.8426791,147.46,147.43,1.35637566]
[1723647392359,0.8426791,147.46,147.43,1.35634572]
[1723647393366,27.93,147.44,147.37,6.5067]
[1723647393534,27.93,147.42,147.37,6.5067]
[1723647394652,0.8426791,147.46,147.37,6.5067]
[1723647394862,27.93,147.45,147.37,6.5067]
[1723647395062,27.93,147.45,147.38,20.0]
[1723647395871,27.93,147.45,147.39,45.0]
[1723647396870,27.93,147.43,147.39,45.0]
[1723647398042,27.93,147.45,147.39,45.0]
[1723647398371,27.93,147.45,147.37,6.5067]
[1723647398372,27.93,147.41,147.37,6.5067]
[1723647398663,27.93,147.39,147.36,15.6081]
[1723647398883,27.93,147.37,147.33,6.5243]
[1723647399044,27.93,147.4,147.33,6.5243]
[1723647400143,27.93,147.36,147.33,6.5243]
[1723647400345,27.93,147.34,147.33,6.5243]
[1723647400558,27.93,147.34,147.32,15.5924]
[1723647400947,27.93,147.34,147.29,6.1789]
[1723647401153,0.12549,147.36,147.29,6.1789]
[1723647401154,27.93,147.32,147.29,6.1789]
[1723647401475,27.93,147.3,147.2,22.5916]
[1723647401684,27.93,147.3,147.21,30.0]
[1723647401972,27.93,147.26,147.2,22.5916]
[1723647402344,20.0,147.32,147.2,22.5916]
[1723647402571,0.25098,147.34,147.2,22.5916]
[1723647402865,27.93,147.33,147.21,36.23582791]
[1723647403072,27.93,147.31,147.2,22.5916]
[1723647403275,27.93,147.28,147.2,22.5916]
[1723647403451,27.93,147.26,147.2,22.5916]
[1723647403868,0.12549,147.32,147.2,22.5916]
[1723647403869,34.92,147.31,147.2,22.5916]
[1723647404102,34.92,147.35,147.22,6.1282]
[1723647404389,34.92,147.37,147.24,6.542]
[1723647404586,34.92,147.37,147.25,0.80003245]
[1723647404895,34.92,147.35,147.24,6.542]
[1723647405063,34.92,147.35,147.25,65.0]
[1723647405369,34.92,147.35,147.26,1.08726694]
[1723647405575,34.92,147.35,147.27,1.08719311]
[1723647405773,0.12549,147.34,147.27,1.08719311]
[1723647406189,0.12549,147.34,147.25,65.0]
[1723647407100,34.92,147.35,147.25,65.0]
[1723647407300,34.92,147.39,147.27,21.1376]
[1723647407463,34.92,147.39,147.28,65.0]
[1723647408301,34.92,147.42,147.28,65.0]
[1723647408584,34.92,147.39,147.28,65.0]
[1723647408774,34.92,147.37,147.28,65.0]
[1723647411375,34.92,147.35,147.27,21.1376]
[1723647412508,34.92,147.33,147.27,21.1376]
[1723647413402,34.92,147.31,147.27,21.1376]
[1723647413605,0.12549,147.3,147.27,6.0985]
[1723647413783,0.25098,147.32,147.27,6.0985]
[1723647414090,0.12549,147.3,147.27,6.0985]
[1723647414480,0.25098,147.3,147.24,6.6097]
[1723647414679,34.92,147.31,147.24,6.6097]
[1723647415819,0.12549,147.3,147.24,6.6097]
[1723647415982,34.92,147.31,147.24,6.6097]
[1723647417486,34.92,147.31,147.24,7.96777855]
[1723647417888,0.37647,147.32,147.25,45.0]
[1723647418081,0.12549,147.32,147.25,46.35796015]
[1723647418403,34.92,147.33,147.25,45.0]
[1723647418709,34.92,147.31,147.25,45.0]
[1723647418884,34.92,147.27,147.18,29.36278615]
[1723647419208,34.92,147.27,147.18,22.2612]
[1723647419780,0.12549,147.26,147.18,22.2612]
[1723647420604,34.92,147.25,147.18,22.2612]
[1723647420806,34.92,147.23,147.18,22.2612]
[1723647421106,0.12549,147.22,147.18,22.2612]
[1723647421307,0.12549,147.22,147.14,21.1089]
[1723647421308,34.92,147.19,147.14,21.1089]
[1723647421525,0.12549,147.24,147.14,21.1089]
[1723647421816,34.92,147.2,147.14,21.1089]
[1723647422008,34.92,147.2,147.15,0.69467621]
[1723647422190,34.92,147.2,147.14,21.1089]
[1723647422587,34.92,147.18,147.14,21.1089]
[1723647422783,0.12549,147.17,147.14,6.0933]
[1723647422986,34.92,147.18,147.14,6.0933]
[1723647423209,34.92,147.16,147.11,6.0627]
[1723647423413,0.12549,147.15,147.11,6.0627]
[1723647423787,34.92,147.16,147.11,6.0627]
[1723647424704,0.12549,147.15,147.11,6.0627]
[1723647424899,34.92,147.14,147.11,6.0627]
[1723647425101,34.92,147.14,147.1,15.6582]
[1723647425290,34.92,147.14,147.05,21.5191]
[1723647426289,34.92,147.18,147.06,1.35967062]
[1723647426505,34.92,147.18,147.05,21.5191]
[1723647426798,20.0,147.17,147.05,21.5191]
[1723647427203,20.0,147.17,147.06,20.0]
[1723647427379,20.0,147.17,147.07,1.35890976]
[1723647427585,0.12549,147.16,147.06,20.0]
[1723647427809,35.29647,147.16,147.06,20.0]
[1723647428307,34.92,147.16,147.07,1.35956336]
[1723647428512,0.12549,147.15,147.06,20.0]
[1723647428812,0.12549,147.15,147.07,45.0]
[1723647429018,20.0,147.17,147.07,45.0]
[1723647429189,34.92,147.18,147.08,20.0]
[1723647429396,34.92,147.18,147.09,45.0]
[1723647429792,34.92,147.16,147.09,45.0]
[1723647430494,0.12549,147.15,147.08,20.0]
[1723647430702,0.12549,147.15,147.06,20.0]
[1723647430904,0.37647,147.15,147.06,20.0]
[1723647431103,0.12549,147.13,147.06,20.0]
[1723647432334,34.92,147.14,147.06,20.0]
[1723647432701,34.92,147.12,147.05,21.5191]
[1723647433490,34.92,147.14,147.05,21.5191]
[1723647433691,35.04549,147.16,147.05,21.5191]
[1723647433907,20.0,147.15,147.05,21.5191]
[1723647434113,0.12549,147.14,147.06,45.0]
[1723647434300,34.92,147.16,147.07,21.35924821]
[1723647434603,34.92,147.18,147.08,45.0]
[1723647434808,0.25098,147.17,147.08,45.0]
[1723647435022,35.04549,147.16,147.05,21.5191]
[1723647435205,35.04549,147.16,147.06,65.0]
[1723647435206,34.92,147.14,147.06,65.0]
[1723647436304,0.12549,147.13,147.06,65.0]
[1723647436503,0.12549,147.13,147.05,21.5191]
[1723647436504,0.12549,147.11,147.05,21.5191]
[1723647436931,34.92,147.12,147.05,21.5191]
[1723647437107,0.25098,147.13,147.05,21.5191]
[1723647437510,0.12549,147.13,147.05,21.5191]
[1723647437712,34.92,147.08,147.02,6.2407]
[1723647438706,34.92,147.1,147.02,6.2407]
[1723647438905,0.12549,147.11,147.02,6.2407]
[1723647439104,34.92,147.16,147.04,22.9287]
[1723647439341,34.92,147.18,147.05,65.0]
[1723647439630,34.92,147.21,147.06,57.456]
[1723647439836,34.92,147.21,147.07,65.0]
[1723647440047,34.92,147.19,147.07,65.0]
[1723647440532,34.92,147.23,147.1,6.0747]
[1723647440745,34.92,147.23,147.13,6.0747]
[1723647440907,34.92,147.21,147.13,6.0747]
[1723647441519,34.92,147.21,147.14,45.0]
[1723647441716,34.92,147.23,147.14,45.0]
[1723647442550,34.92,147.23,147.13,6.0747]
[1723647442733,34.92,147.21,147.14,20.0]
[1723647442933,20.0,147.24,147.14,20.0]
[1723647442934,34.92,147.19,147.14,20.0]
[1723647443144,34.92,147.19,147.13,6.0747]
[1723647443517,0.12549,147.18,147.13,6.0747]
[1723647444038,34.92,147.21,147.13,6.0747]
[1723647444217,34.92,147.21,147.14,45.0]
[1723647445615,0.12549,147.2,147.13,6.0747]
[1723647446027,34.92,147.21,147.13,6.0747]
[1723647446204,0.25098,147.22,147.14,46.11845103]
[1723647446416,20.25098,147.22,147.15,1.11837514]
[1723647447344,34.92,147.23,147.15,1.11837514]
[1723647447632,34.92,147.25,147.16,1.18101181]
[1723647447838,34.92,147.25,147.17,21.3423]
[1723647448009,34.92,147.25,147.18,46.18117688]
[1723647448641,293.82,147.29,147.19,1.18106303]
[1723647449012,34.92,147.27,147.18,45.0]
[1723647449225,34.92,147.27,147.19,1.1803173]
[1723647449542,34.92,147.27,147.18,45.0]
[1723647450629,0.12549,147.28,147.19,1.17952282]
[1723647450943,0.12549,147.28,147.19,21.17952282]
[1723647451112,0.12549,147.28,147.2,45.0]
[1723647452942,0.25098,147.28,147.2,45.0]
[1723647453438,0.12549,147.28,147.21,1.35701617]
[1723647453642,0.12549,147.28,147.2,45.0]
[1723647456039,0.12549,147.28,147.19,20.0]
[1723647456040,0.12549,147.26,147.19,20.0]
[1723647456242,34.92,147.23,147.17,21.3423]
[1723647457519,0.12549,147.22,147.17,21.3423]
[1723647458952,34.92,147.23,147.17,21.3423]
[1723647459635,34.92,147.25,147.18,45.0]
[1723647460140,0.12549,147.24,147.18,45.0]
[1723647460822,34.92,147.23,147.17,21.3423]
[1723647461163,34.92,147.19,147.17,21.3423]
[1723647461316,34.92,147.19,147.13,21.517]
[1723647461518,0.12549,147.18,147.13,21.517]
[1723647461735,34.92,147.17,147.13,21.517]
[1723647461929,34.92,147.19,147.13,21.517]
[1723647462647,35.04549,147.21,147.14,0.63844319]
[1723647462853,35.17098,147.21,147.13,21.517]
[1723647463031,0.12549,147.2,147.13,21.517]
[1723647463631,0.25098,147.21,147.14,45.63811737]
[1723647463955,35.17098,147.21,147.14,45.63811737]
[1723647464123,35.04549,147.21,147.14,45.0]
[1723647464450,34.92,147.21,147.14,45.0]
[1723647465723,34.92,147.21,147.13,21.517]
[1723647465724,0.12549,147.2,147.13,21.517]
[1723647465951,0.25098,147.2,147.13,21.517]
[1723647466248,34.92,147.21,147.14,45.0]
[1723647467156,34.92,147.19,147.13,21.517]
[1723647467526,34.92,147.17,147.13,21.517]
[1723647469428,34.92,147.19,147.13,21.517]
[1723647469628,0.25098,147.18,147.13,21.517]
[1723647470855,34.92,147.17,147.13,21.517]
[1723647471438,0.12549,147.18,147.13,21.517]
[1723647471658,34.92,147.19,147.13,21.517]
[1723647476273,20.0,147.22,147.14,46.35838117]
[1723647476453,34.92,147.24,147.15,1.35828886]
[1723647476653,34.92,147.24,147.14,45.0]
[1723647477370,34.92,147.24,147.15,1.35764269]
[1723647477545,34.92,147.24,147.15,20.0]
[1723647477744,34.92,147.24,147.16,45.0]
[1723647477970,20.0,147.25,147.16,45.0]
[1723647477971,27.97,147.22,147.16,45.0]
[1723647479644,27.97,147.24,147.17,1.3588361]
[1723647479845,34.95,147.24,147.16,45.0]
[1723647480077,34.95,147.24,147.17,1.35790217]
[1723647480376,34.95,147.24,147.16,45.0]
[1723647480880,0.12549,147.26,147.17,7.63547181]
[1723647481057,20.25098,147.26,147.18,62.14262661]
[1723647481262,34.95,147.27,147.19,0.70783493]
[1723647481478,34.95,147.25,147.18,60.7841]